bitfinex/quotes_SOLUSD_20251124
["timestamp","ask_amount","ask_price","bid_price","bid_amount"]
[1764025368536,0.69,139.33,139.28,28.13055594]
[1764025368828,0.69,139.33,139.28,28.79055594]
[1764025369130,0.69,139.33,139.29,0.66]
[1764025369733,0.69,139.33,139.29,3.66131988]
[1764025369934,16.988864,139.35,139.3,3.00131988]
[1764025370231,0.68,139.35,139.3,3.66131988]
[1764025370435,0.68,139.35,139.31,0.66]
[1764025370630,0.68,139.35,139.32,25.12202124]
[1764025371218,7.83509023,139.35,139.32,7.17772035]
[1764025371419,7.15509023,139.34,139.32,7.17772035]
[1764025371618,7.83509023,139.34,139.32,7.17772035]
[1764025371850,0.68,139.33,139.32,7.17772035]
[1764025372319,0.68,139.35,139.32,7.17772035]
[1764025372637,0.68,139.35,139.32,25.12202124]
[1764025377247,0.68,139.35,139.32,87.62202124]
[1764025377619,7.15509023,139.34,139.32,69.67772035]
[1764025378145,0.72,139.33,139.32,69.67772035]
[1764025379641,7.87509023,139.33,139.32,62.5]
[1764025380144,7.87509023,139.33,139.26,19.468864]
[1764025380145,23.86227643,139.33,139.29,62.5]
[1764025380351,7.15509023,139.3,139.26,80.45198282]
[1764025380548,7.15509023,139.29,139.26,80.45198282]
[1764025380955,0.72,139.29,139.26,81.12198282]
[1764025381129,7.87509023,139.31,139.27,0.67]
[1764025381332,7.87509023,139.31,139.27,7.8500993]
[1764025381654,0.72,139.3,139.27,7.8500993]
[1764025384659,0.72,139.35,139.29,7.15509023]
[1764025384959,0.72,139.35,139.3,7.15509023]
[1764025385159,0.72,139.35,139.3,70.32509023]
[1764025385451,0.72,139.35,139.31,0.67]
[1764025385842,0.72,139.35,139.32,7.17772035]
[1764025386041,0.72,139.35,139.32,69.67772035]
[1764025387259,3.16,139.36,139.33,0.67]
[1764025387460,3.88,139.36,139.33,0.67]
[1764025389145,3.88,139.36,139.33,70.34702787]
[1764025389733,3.88,139.36,139.33,63.17]
[1764025390655,14.32885988,139.4,139.34,7.82509023]
[1764025390859,17.48885988,139.4,139.34,172.22509023]
[1764025391055,0.72,139.39,139.35,0.67]
[1764025391263,3.16000001,139.4,139.35,15.00119437]
[1764025391559,7.87509023,139.39,139.35,0.67]
[1764025391734,7.87509023,139.39,139.36,0.67]
[1764025392352,0.72,139.39,139.36,0.67]
[1764025393850,3.72367764,139.39,139.36,0.67]
[1764025394246,0.72,139.38,139.35,0.67]
[1764025394448,10.89799278,139.39,139.35,0.67]
[1764025394646,3.00367764,139.36,139.35,62.5]
[1764025394950,23.19254164,139.36,139.3,62.5]
[1764025395153,3.00367764,139.32,139.3,62.5]
[1764025396667,7.87941332,139.32,139.3,62.5]
[1764025398964,7.15941332,139.32,139.3,62.5]
[1764025399350,7.87941332,139.33,139.3,63.17]
[1764025399570,0.72,139.33,139.3,63.17]
[1764025399876,0.72,139.33,139.3,70.34855527]
[1764025401965,0.72,139.33,139.3,63.17]
[1764025402160,7.87941332,139.33,139.3,63.17]
[1764025402554,7.87941332,139.32,139.3,62.5]
[1764025402954,0.68,139.31,139.3,62.5]
[1764025403168,7.15941332,139.32,139.3,62.5]
[1764025404859,7.83941332,139.32,139.3,62.5]
[1764025405381,7.85723118,139.33,139.3,63.22]
[1764025405552,11.01723118,139.33,139.3,63.22]
[1764025405954,3.84,139.33,139.3,63.22]
[1764025407876,0.68,139.32,139.3,62.5]
[1764025408060,7.83941332,139.32,139.3,62.5]
[1764025408569,7.83941332,139.31,139.3,62.5]
[1764025408867,7.83941332,139.31,139.29,62.5]
[1764025409046,10.33736633,139.33,139.29,62.5]
[1764025409047,7.83941332,139.3,139.29,62.5]
[1764025410555,13.14950925,139.3,139.29,62.5]
[1764025410866,16.30950925,139.3,139.29,62.5]
[1764025411067,16.30950925,139.3,139.27,62.5]
[1764025411384,3.84,139.3,139.27,62.5]
[1764025412564,3.16,139.3,139.27,62.5]
[1764025412764,0.68,139.29,139.27,62.5]
[1764025413663,12.46950925,139.28,139.23,62.0]
[1764025413863,12.46950925,139.26,139.23,62.0]
[1764025414063,12.46950925,139.26,139.22,0.72]
[1764025414265,12.46950925,139.24,139.2,0.72]
[1764025414455,13.14950925,139.25,139.19,8.10426188]
[1764025414670,12.19873335,139.25,139.2,0.72]
[1764025414871,0.68,139.25,139.2,0.72]
[1764025415055,0.68,139.24,139.2,0.72]
[1764025416156,14.67873335,139.23,139.19,0.2]
[1764025416483,0.68,139.23,139.19,12.43873335]
[1764025416675,3.16,139.24,139.2,0.72]
[1764025416877,3.84,139.25,139.2,12.23873335]
[1764025417067,11.51873335,139.21,139.19,0.2]
[1764025417260,23.50867827,139.2,139.19,0.2]
[1764025417450,23.50867827,139.2,139.16,0.2]
[1764025417451,30.69258631,139.2,139.16,0.2]
[1764025417653,0.68,139.19,139.16,0.2]
[1764025417952,3.18,139.18,139.16,0.92]
[1764025418353,0.68,139.23,139.17,12.23873335]
[1764025418678,0.68,139.23,139.19,4.34207994]
[1764025418679,3.18,139.22,139.19,4.34207994]
[1764025418977,0.68,139.23,139.18,0.72]
[1764025419176,8.80994492,139.21,139.16,0.92]
[1764025419353,4.34207994,139.21,139.16,0.2]
[1764025419553,0.68,139.21,139.17,0.72]
[1764025419755,0.68,139.21,139.17,5.06207994]
[1764025419957,8.80994492,139.25,139.2,4.34207994]
[1764025420175,7.17863054,139.31,139.18,0.72]
[1764025420176,8.20207994,139.24,139.18,0.72]
[1764025420483,4.34207994,139.21,139.16,8.10588461]
[1764025420650,4.34207994,139.22,139.16,8.10588461]
[1764025420857,0.68,139.23,139.17,0.72]
[1764025421191,20.65094394,139.19,139.16,0.2]
[1764025421357,3.18,139.21,139.16,12.44798652]
[1764025421687,3.86,139.21,139.16,8.10590658]
[1764025421863,7.52207994,139.21,139.16,8.10590658]
[1764025422059,5.02207994,139.2,139.16,0.92]
[1764025422260,4.34207994,139.17,139.16,0.2]
[1764025422471,13.83202486,139.19,139.16,0.2]
[1764025422687,24.51094394,139.21,139.16,0.92]
[1764025422870,3.18,139.2,139.16,12.44800355]
[1764025423065,3.18,139.2,139.17,0.72]
[1764025423268,0.68,139.23,139.18,4.34207994]
[1764025423582,7.52207994,139.22,139.17,7.90504254]
[1764025423771,4.34207994,139.21,139.17,7.90504254]
[1764025424084,0.68,139.21,139.17,7.90504254]
[1764025425357,0.68,139.21,139.17,0.72]
[1764025425557,5.02207994,139.21,139.17,0.72]
[1764025426578,4.34207994,139.2,139.17,0.72]
[1764025426774,5.02207994,139.21,139.17,0.72]
[1764025427289,5.02207994,139.21,139.17,7.90541592]
[1764025427468,3.18,139.22,139.18,0.72]
[1764025427662,0.68,139.21,139.18,0.72]
[1764025427979,3.86,139.21,139.18,62.5]
[1764025428182,3.75701935,139.26,139.18,62.5]
[1764025428183,0.7,139.28,139.2,4.34207994]
[1764025428483,3.88,139.27,139.23,4.34207994]
[1764025428656,0.5,139.28,139.23,5.03207994]
[1764025428856,4.34207994,139.24,139.2,0.69]
[1764025429061,13.85202486,139.27,139.21,0.69]
[1764025429277,0.7,139.26,139.21,0.69]
[1764025429469,5.04207994,139.26,139.21,0.69]
[1764025429674,4.34207994,139.25,139.21,0.69]
[1764025430666,4.34207994,139.22,139.18,0.69]
[1764025430980,4.34207994,139.2,139.18,0.69]
[1764025431571,4.34207994,139.21,139.18,0.69]
[1764025432285,4.34207994,139.21,139.18,7.87484061]
[1764025432685,11.52563692,139.19,139.16,0.87]
[1764025432887,11.52563692,139.22,139.16,26.02080416]
[1764025433088,11.52563692,139.22,139.17,0.67]
[1764025433884,3.18,139.25,139.21,16.308864]
[1764025434088,11.52563692,139.27,139.21,78.808864]
[1764025434280,14.70563692,139.27,139.22,0.67]
[1764025434481,11.52563692,139.26,139.22,0.67]
[1764025434665,11.52563692,139.26,139.23,7.18236012]
[1764025434870,12.20563692,139.26,139.23,7.18236012]
[1764025435086,0.68,139.26,139.23,7.18236012]
[1764025435276,14.70563692,139.27,139.23,7.85236012]
[1764025435594,11.52563692,139.25,139.21,86.66220126]
[1764025435976,11.52563692,139.25,139.22,0.67]
[1764025436785,11.52563692,139.25,139.22,7.85274029]
[1764025437383,11.52563692,139.23,139.19,63.17]
[1764025437590,3.18,139.23,139.2,0.67]
[1764025437975,3.18,139.26,139.2,74.69563692]
[1764025438176,14.70563692,139.26,139.2,63.17]
[1764025438469,11.52563692,139.27,139.21,0.67]
[1764025438686,12.20563692,139.29,139.22,11.52563692]
[1764025438879,14.70563692,139.29,139.22,201.06570299]
[1764025439077,14.70563692,139.29,139.23,0.67]
[1764025439280,3.18,139.29,139.24,11.52563692]
[1764025439800,3.18,139.29,139.25,0.67]
[1764025440173,11.52563692,139.28,139.23,0.67]
[1764025440395,11.52563692,139.27,139.23,0.67]
[1764025440581,11.52563692,139.28,139.24,0.67]
[1764025440781,3.18,139.29,139.24,7.85148896]
[1764025440782,11.52563692,139.27,139.24,7.85148896]
[1764025441807,16.308864,139.3,139.25,0.67]
[1764025441974,11.52563692,139.28,139.24,7.18148896]
[1764025442299,11.52563692,139.27,139.24,7.85148896]
[1764025442502,12.20563692,139.27,139.24,7.18148896]
[1764025442707,11.52563692,139.25,139.21,7.18339199]
[1764025442997,11.52563692,139.25,139.2,25.81306098]
[1764025443198,12.20563692,139.25,139.21,0.67]
[1764025443387,0.68,139.25,139.21,0.67]
[1764025443800,11.52563692,139.24,139.2,7.18390804]
[1764025443979,0.68,139.25,139.19,7.85425583]
[1764025443980,11.52563692,139.22,139.19,7.85425583]
[1764025444181,11.52563692,139.21,139.17,0.67]
[1764025444385,12.20563692,139.21,139.17,0.67]
[1764025444803,12.20563692,139.21,139.17,7.85545663]
[1764025445181,14.70563692,139.22,139.17,25.14909821]
[1764025445389,14.70563692,139.22,139.18,0.67]
[1764025445690,11.52563692,139.2,139.16,7.38585899]
[1764025445888,32.30119172,139.23,139.16,8.05585899]
[1764025445889,11.52563692,139.22,139.16,8.05585899]
[1764025446111,3.18,139.21,139.17,0.67]
[1764025446282,3.18,139.21,139.17,12.19563692]
[1764025446684,3.18,139.21,139.18,0.67]
[1764025446903,3.18,139.24,139.18,0.67]
[1764025447110,11.52563692,139.22,139.18,7.85482466]
[1764025447417,12.20563692,139.23,139.18,7.85482466]
[1764025447712,3.18,139.24,139.19,0.67]
[1764025447917,28.51450092,139.25,139.19,0.67]
[1764025448091,3.18,139.24,139.19,0.67]
[1764025448900,15.38563692,139.24,139.2,7.18390804]
[1764025449097,3.18,139.24,139.2,7.18390804]
[1764025449293,12.20563692,139.23,139.2,7.18390804]
[1764025449710,11.52563692,139.22,139.2,7.18390804]
[1764025450710,3.18,139.24,139.21,0.67]
[1764025450909,3.18,139.24,139.21,7.85288555]
[1764025451117,11.52563692,139.22,139.2,62.5]
[1764025451413,11.52563692,139.21,139.16,0.2]
[1764025451711,11.52563692,139.18,139.16,0.2]
[1764025452114,11.52563692,139.18,139.16,0.87]
[1764025452296,11.52563692,139.18,139.16,8.05555912]
[1764025452492,11.52563692,139.17,139.16,0.2]
[1764025452805,11.52563692,139.18,139.16,8.05597298]
[1764025453323,14.72563692,139.21,139.17,0.67]
[1764025453488,14.72563692,139.21,139.17,63.17]
[1764025453688,25.11880892,139.24,139.17,63.17]
[1764025453689,14.72563692,139.22,139.17,63.17]
[1764025453890,14.72563692,139.22,139.18,0.67]
[1764025454121,3.2,139.22,139.18,0.67]
[1764025454288,27.83450092,139.24,139.19,25.14548458]
[1764025454603,14.72563692,139.24,139.19,87.64548458]
[1764025454798,14.72563692,139.24,139.2,0.67]
[1764025455001,14.72563692,139.24,139.2,63.17]
[1764025455196,11.52563692,139.22,139.2,62.5]
[1764025455405,11.52563692,139.21,139.2,62.5]
[1764025455604,11.52563692,139.22,139.19,23.49328816]
[1764025455929,11.52563692,139.22,139.19,7.85442416]
[1764025456402,3.2,139.24,139.2,0.67]
[1764025456608,11.52563692,139.23,139.2,0.67]
[1764025456992,3.2,139.23,139.2,0.67]
[1764025457824,14.72563692,139.23,139.2,0.67]
[1764025459021,14.72563692,139.23,139.21,7.18339199]
[1764025460608,14.72563692,139.23,139.21,69.68339199]
[1764025461855,11.52563692,139.25,139.21,189.54187198]
[1764025462004,21.59749469,139.29,139.21,189.54187198]
[1764025462005,12.20563692,139.28,139.22,0.67]
[1764025462208,14.72563692,139.27,139.22,63.17]
[1764025462629,15.40563692,139.27,139.23,0.67]
[1764025463134,3.2,139.27,139.23,165.07]
[1764025463513,11.52563692,139.3,139.24,0.69]
[1764025463722,14.72563692,139.3,139.24,0.69]
[1764025463929,14.72563692,139.3,139.25,25.1346499]
[1764025464107,14.72563692,139.3,139.25,87.6346499]
[1764025464460,11.52563692,139.26,139.25,87.6346499]
[1764025464613,16.308864,139.29,139.25,87.6346499]
[1764025464936,11.52563692,139.27,139.25,87.6346499]
[1764025465111,11.52563692,139.26,139.25,87.6346499]
[1764025465731,14.72563692,139.27,139.25,87.6346499]
[1764025466409,11.52563692,139.26,139.25,87.6346499]
[1764025466832,3.2,139.27,139.25,88.3246499]
[1764025468335,8.80994492,139.32,139.26,0.69]
[1764025468636,11.52563692,139.32,139.26,0.69]
[1764025468821,3.18,139.31,139.26,0.69]
[1764025469226,14.70563692,139.31,139.26,0.69]
[1764025469626,14.70563692,139.31,139.26,165.09]
[1764025469828,3.18,139.31,139.27,0.69]
[1764025471135,3.18,139.31,139.28,25.12923606]
[1764025471340,3.18,139.31,139.28,87.62923606]
[1764025471535,14.70563692,139.31,139.28,88.31923606]
[1764025472042,11.52563692,139.29,139.28,69.67978173]
[1764025472618,6.61191733,139.29,139.28,69.67978173]
[1764025473139,6.61191733,139.29,139.28,62.5]
[1764025473439,7.30191733,139.29,139.28,69.67978173]
[1764025473743,6.61191733,139.29,139.28,62.5]
[1764025474147,6.61191733,139.29,139.28,69.67978173]
[1764025474520,6.61191733,139.29,139.28,62.5]
[1764025475529,7.30191733,139.29,139.28,62.5]
[1764025475724,6.61191733,139.29,139.28,62.5]
[1764025475933,6.61191733,139.29,139.28,69.67978173]
[1764025476436,6.61191733,139.3,139.28,69.67978173]
[1764025476637,6.61191733,139.31,139.28,69.67978173]
[1764025476830,3.18,139.31,139.29,0.69]
[1764025477956,3.18,139.31,139.3,7.17875089]
[1764025480152,10.48191733,139.31,139.29,62.5]
[1764025480359,7.30191733,139.3,139.29,62.5]
[1764025481331,7.30191733,139.3,139.26,69.6806126]
[1764025481534,6.61191733,139.27,139.26,62.5]
[1764025481727,10.48191733,139.27,139.26,62.5]
[1764025481933,9.79191733,139.27,139.26,69.68081286]
[1764025483956,9.79191733,139.27,139.26,62.5]
[1764025484139,10.48191733,139.27,139.26,62.5]
[1764025484739,10.48191733,139.27,139.24,62.5]
[1764025484947,0.69,139.26,139.24,62.5]
[1764025485152,6.61191733,139.25,139.24,62.5]
[1764025485354,6.61191733,139.25,139.21,63.19]
[1764025485655,3.18,139.27,139.2,0.69]
[1764025485656,6.61191733,139.23,139.2,0.69]
[1764025485837,6.61191733,139.22,139.2,0.69]
[1764025486037,6.61191733,139.22,139.21,7.18339199]
[1764025486968,7.30191733,139.22,139.19,7.18420627]
[1764025487154,9.79191733,139.21,139.19,7.18420627]
[1764025487654,3.18,139.21,139.2,0.69]
[1764025488152,3.18,139.21,139.2,7.18390804]
[1764025491061,9.79191733,139.21,139.2,62.5]
[1764025491265,10.51191733,139.21,139.18,62.5]
[1764025491464,6.61191733,139.19,139.18,62.5]
[1764025492860,6.61191733,139.2,139.18,0.68]
[1764025493062,3.18,139.21,139.18,0.68]
[1764025493063,9.79191733,139.21,139.18,0.68]
[1764025493579,3.18,139.22,139.18,0.68]
[1764025493766,9.79191733,139.22,139.18,63.18]
[1764025494279,9.79191733,139.22,139.2,7.18390804]
[1764025494777,0.72,139.26,139.21,0.68]
[1764025494942,9.79191733,139.25,139.21,63.18]
[1764025495149,6.61191733,139.27,139.21,0.68]
[1764025495377,6.61191733,139.27,139.22,0.68]
[1764025495378,3.18,139.26,139.22,0.68]
[1764025495556,3.18,139.26,139.22,63.18]
[1764025496065,3.18,139.26,139.23,0.68]
[1764025496249,3.18,139.26,139.24,7.18184429]
[1764025496643,9.79191733,139.26,139.24,7.18184429]
[1764025497950,9.79191733,139.26,139.24,7.86184429]
[1764025498259,3.18,139.26,139.24,7.86184429]
[1764025498465,3.18,139.26,139.25,0.68]
[1764025498661,3.18,139.26,139.24,7.86184429]
[1764025499174,6.61191733,139.25,139.23,69.68227799]
[1764025499674,6.61191733,139.24,139.23,69.68227799]
[1764025499844,7.33191733,139.24,139.23,62.5]
[1764025501467,7.33191733,139.24,139.22,62.5]
[1764025501767,6.61191733,139.23,139.22,62.5]
[1764025502166,7.33191733,139.24,139.22,69.68287602]
[1764025502573,6.61191733,139.23,139.22,69.68287602]
[1764025502956,6.61191733,139.23,139.22,62.5]
[1764025503178,7.33191733,139.23,139.22,62.5]
[1764025503479,7.33191733,139.23,139.19,102.58]
[1764025503480,7.33191733,139.23,139.2,7.18390804]
[1764025503681,9.79191733,139.22,139.2,7.86390804]
[1764025503858,9.79191733,139.22,139.2,7.18390804]
[1764025504058,9.79191733,139.22,139.2,7.86390804]
[1764025504468,9.79191733,139.22,139.2,70.36390804]
[1764025506982,3.18,139.22,139.21,0.68]
[1764025507162,3.18,139.24,139.21,0.68]
[1764025507479,9.79191733,139.25,139.21,0.68]
[1764025508067,3.18,139.25,139.21,63.18]
[1764025508263,7.33191733,139.29,139.21,171.69191733]
[1764025508480,9.79191733,139.29,139.22,3.86]
[1764025508797,3.18,139.29,139.23,25.13826042]
[1764025509104,3.18,139.29,139.24,3.18]
[1764025509264,3.18,139.29,139.24,66.36]
[1764025509465,6.61191733,139.28,139.25,0.68]
[1764025509660,6.61191733,139.27,139.25,0.68]
[1764025510895,6.61191733,139.26,139.25,0.68]
[1764025511065,6.61191733,139.26,139.25,7.86132854]
[1764025512195,6.61191733,139.26,139.24,7.18184429]
[1764025512395,6.61191733,139.26,139.24,7.86184429]
[1764025512988,6.61191733,139.26,139.24,7.18184429]
[1764025513696,6.61191733,139.26,139.24,7.86184429]
[1764025514302,6.61191733,139.26,139.23,70.36234736]
[1764025514665,2.77798262,139.25,139.23,69.68234736]
[1764025514971,0.72,139.26,139.23,70.36234736]
[1764025515167,2.77798262,139.25,139.23,70.36234736]
[1764025515386,3.49798262,139.26,139.23,70.36234736]
[1764025515603,3.9,139.29,139.24,0.68]
[1764025515804,2.77798262,139.28,139.24,63.18]
[1764025516103,2.77798262,139.25,139.21,0.68]
[1764025516402,22.28684662,139.25,139.21,7.86290335]
[1764025516606,2.77798262,139.24,139.21,7.86290335]
[1764025516778,2.77798262,139.24,139.22,0.68]
[1764025518390,3.49798262,139.23,139.19,16.308864]
[1764025518586,6.61940698,139.21,139.19,16.988864]
[1764025519401,6.61940698,139.22,139.19,7.86421445]
[1764025521605,0.72,139.23,139.19,7.86421445]
[1764025522510,6.61940698,139.22,139.19,7.18421445]
[1764025523003,7.29940698,139.22,139.19,69.68421445]
[1764025523205,7.29940698,139.22,139.19,70.33421445]
[1764025523805,0.68,139.22,139.19,70.33421445]
[1764025524108,16.308864,139.2,139.16,0.2]
[1764025524312,3.2,139.21,139.17,0.65]
[1764025525311,3.2,139.21,139.18,7.18494036]
[1764025525818,3.2,139.21,139.19,0.65]
[1764025525992,3.2,139.21,139.18,7.83494036]
[1764025527421,9.81940698,139.21,139.18,7.83494036]
[1764025527801,10.49940698,139.21,139.18,7.83494036]
[1764025528108,16.308864,139.25,139.19,0.65]
[1764025528311,3.2,139.24,139.19,0.65]
[1764025528513,3.2,139.24,139.19,7.26940698]
[1764025528903,3.88,139.24,139.21,7.18339199]
[1764025529108,3.2,139.24,139.21,7.18339199]
[1764025529316,3.2,139.24,139.21,70.33339199]
[1764025530338,3.88,139.24,139.21,70.33339199]
[1764025531623,3.2,139.24,139.21,70.33339199]
[1764025532041,3.88,139.24,139.21,70.33339199]
[1764025532403,3.2,139.24,139.21,70.33339199]
[1764025532599,7.29940698,139.23,139.19,0.65]
[1764025534228,7.29940698,139.23,139.2,7.18390804]
[1764025534531,12.20372637,139.23,139.2,7.18390804]
[1764025537340,0.68,139.23,139.2,7.18390804]
[1764025537545,0.68,139.23,139.17,62.5]
[1764025537546,11.52372637,139.21,139.17,62.5]
[1764025537719,11.52372637,139.18,139.16,0.2]
[1764025538221,12.20372637,139.17,139.16,0.2]
[1764025538422,15.40372637,139.17,139.16,0.2]
[1764025538619,24.21367129,139.17,139.16,0.2]
[1764025539635,15.40372637,139.17,139.16,0.2]
[1764025539832,3.2,139.17,139.16,0.2]
[1764025540144,14.72372637,139.17,139.16,0.2]
[1764025540322,15.40372637,139.17,139.16,0.2]
[1764025540721,24.21367129,139.17,139.16,0.2]
[1764025543151,31.39912792,139.17,139.16,0.2]
[1764025544034,14.72372637,139.17,139.16,0.2]
[1764025544425,15.40372637,139.17,139.16,0.2]
[1764025544846,24.21367129,139.17,139.16,0.2]
[1764025545159,31.39912792,139.17,139.16,0.2]
[1764025548359,24.21367129,139.17,139.16,0.2]
[1764025548653,31.39912792,139.17,139.16,0.2]
[1764025550551,24.21367129,139.17,139.16,0.2]
[1764025554063,12.68994492,139.17,139.16,0.2]
[1764025554265,24.21367129,139.17,139.16,0.2]
[1764025558286,19.508864,139.17,139.16,0.2]
[1764025558461,31.03259037,139.17,139.16,0.2]
[1764025559058,19.508864,139.17,139.16,0.92]
[1764025559265,31.03259037,139.17,139.16,0.92]
[1764025559467,31.03259037,139.17,139.16,0.2]
[1764025562591,23.85601375,139.17,139.16,0.2]
[1764025564287,20.65601375,139.17,139.16,0.2]
[1764025564465,3.2,139.18,139.16,70.60597298]
[1764025564666,3.2,139.18,139.16,88.57090543]
[1764025564867,3.2,139.18,139.17,0.72]
[1764025565584,8.80994492,139.17,139.16,0.2]
[1764025565886,20.65601375,139.17,139.16,0.2]
[1764025566084,23.85601375,139.17,139.16,0.2]
[1764025566288,24.56601375,139.17,139.16,0.2]
[1764025569094,40.5614153,139.17,139.16,0.2]
[1764025569464,28.59970105,139.17,139.16,0.2]
[1764025569898,8.80994492,139.15,139.14,0.2]
[1764025570090,13.15709467,139.15,139.14,0.2]
[1764025570289,13.86709467,139.15,139.14,0.2]
[1764025570673,21.05358406,139.15,139.14,0.2]
[1764025570988,13.15709467,139.15,139.14,0.2]
[1764025571191,16.35709467,139.15,139.14,0.2]
[1764025571779,7.54714975,139.15,139.14,0.2]
[1764025571971,4.34714975,139.15,139.14,0.2]
[1764025572299,23.85601375,139.15,139.14,0.2]
[1764025574286,40.56244806,139.15,139.14,0.2]
[1764025575380,33.37595867,139.15,139.14,0.2]
[1764025576692,40.56244806,139.15,139.14,0.2]
[1764025577502,43.44481159,139.15,139.14,0.2]
[1764025577997,19.508864,139.15,139.14,0.2]
[1764025578406,3.2,139.15,139.14,0.2]
[1764025578985,7.22889032,139.19,139.14,8.10682799]
[1764025579220,3.2,139.18,139.14,70.60682799]
[1764025579388,3.2,139.18,139.15,0.72]
[1764025581209,3.2,139.18,139.15,7.90645023]
[1764025582899,3.2,139.18,139.15,0.72]
[1764025586010,7.54714975,139.18,139.15,0.72]
[1764025586484,3.2,139.18,139.15,0.72]
[1764025588108,3.2,139.18,139.15,63.22]
[1764025588512,3.2,139.18,139.16,0.72]
[1764025589391,3.2,139.18,139.15,62.5]
[1764025589715,8.22714975,139.18,139.15,63.22]
[1764025591107,3.2,139.18,139.15,63.22]
[1764025591318,3.2,139.18,139.15,70.40636747]
[1764025591612,3.2,139.18,139.15,63.22]
[1764025591805,3.2,139.18,139.15,70.40645821]
[1764025592686,32.30303268,139.2,139.16,0.72]
[1764025592687,16.308864,139.2,139.16,0.72]
[1764025592909,17.95537352,139.24,139.17,4.34714975]
[1764025592910,8.80994492,139.23,139.17,4.34714975]
[1764025593097,3.2,139.22,139.18,7.18494036]
[1764025593407,3.2,139.22,139.18,7.90494036]
[1764025593626,3.2,139.22,139.19,0.72]
[1764025595496,3.2,139.22,139.19,7.90419798]
[1764025595801,3.2,139.22,139.19,0.72]
[1764025596016,3.2,139.22,139.2,0.72]
[1764025597513,3.2,139.22,139.18,69.68477673]
[1764025597514,3.45970099,139.21,139.18,62.5]
[1764025597827,2.77970099,139.19,139.18,62.5]
[1764025598009,5.97970099,139.19,139.16,0.72]
[1764025598326,2.77970099,139.17,139.14,110.00688096]
[1764025598499,3.2,139.16,139.15,0.72]
[1764025599628,3.2,139.16,139.15,7.90648939]
[1764025600105,3.2,139.17,139.15,10.68619038]
[1764025600311,3.2,139.17,139.16,0.72]
[1764025600525,19.08856499,139.22,139.16,0.72]
[1764025600829,3.2,139.21,139.16,0.72]
[1764025601712,3.2,139.21,139.17,7.18545663]
[1764025602502,3.2,139.21,139.18,0.72]
[1764025603621,2.77970099,139.19,139.16,7.90597298]
[1764025603800,3.18,139.18,139.16,0.72]
[1764025604001,3.18,139.18,139.16,63.22]
[1764025605414,3.18,139.18,139.16,62.5]
[1764025605615,3.18,139.18,139.16,63.22]
[1764025607341,3.18,139.18,139.16,69.68592162]
[1764025607520,3.18,139.18,139.17,0.72]
[1764025608908,6.64970099,139.18,139.16,62.5]
[1764025609524,5.95970099,139.18,139.16,62.5]
[1764025609711,5.95970099,139.18,139.16,63.19]
[1764025610622,3.18,139.18,139.16,63.19]
[1764025610819,5.95970099,139.18,139.16,63.19]
[1764025613137,3.18,139.18,139.16,63.19]
[1764025613516,3.18,139.18,139.16,62.5]
[1764025614023,3.18,139.18,139.16,63.16]
[1764025615116,3.18,139.17,139.16,63.16]
[1764025622748,3.88,139.17,139.14,69.88689257]
[1764025622925,3.88,139.17,139.14,73.32659356]
[1764025623241,3.18,139.17,139.15,0.66]
[1764025623440,3.18,139.17,139.15,3.43970099]
[1764025623620,3.18,139.17,139.15,0.66]
[1764025623825,3.18,139.17,139.16,0.66]
[1764025624023,3.18,139.17,139.16,7.84597298]
[1764025627646,3.18,139.17,139.16,0.66]